bitfinex-derivatives/quotes_BTCF0:USTF0_20210406
["timestamp","ask_amount","ask_price","bid_price","bid_amount"]
[1617690584625,0.30105892,58745.0,58744.0,2.69123588]
[1617690585727,0.44151724,58753.0,58744.0,2.69123588]
[1617690585728,0.30106568,58746.0,58744.0,2.69123588]
[1617690586129,0.30106568,58746.0,58745.0,1.0]
[1617690586329,0.44151724,58753.0,58745.0,1.24058291]
[1617690586529,0.44151724,58753.0,58745.0,2.51058291]
[1617690586830,0.30106679,58746.0,58745.0,1.51058291]
[1617690587229,0.27566679,58746.0,58745.0,1.51058291]
[1617690587430,0.19276679,58746.0,58745.0,2.51058291]
[1617690587631,0.44151781,58754.0,58745.0,1.77023504]
[1617690587632,0.30106196,58747.0,58745.0,1.77023504]
[1617690588070,0.44150946,58757.0,58746.0,0.94006948]
[1617690588431,0.44150946,58757.0,58747.0,0.27]
[1617690588632,0.44150946,58757.0,58754.0,1.54723619]
[1617690588931,0.50221155,58762.0,58756.0,0.54763946]
[1617690589344,0.44195651,58757.0,58756.0,0.54763946]
[1617690590133,0.44195651,58757.0,58756.0,0.81763946]
[1617690593637,0.10725655,58765.0,58756.0,0.37725655]
[1617690593638,0.44133814,58759.0,58756.0,0.37725655]
[1617690594038,0.24129219,58757.0,58756.0,0.37725655]
[1617690594438,0.44133803,58759.0,58756.0,0.37725655]
[1617690594838,0.44133803,58759.0,58757.0,0.06032314]
[1617690595241,0.44133803,58759.0,58758.0,0.27]
[1617690595441,0.74279903,58764.0,58758.0,0.27]
[1617690595742,0.682633,58759.0,58758.0,0.3303234]
[1617690596141,0.682633,58759.0,58758.0,0.0603234]
[1617690596344,0.44133939,58759.0,58758.0,0.0603234]
[1617690596544,0.44133939,58759.0,58758.0,0.3303234]
[1617690598444,0.44132606,58760.0,58758.0,0.4761934]
[1617690598742,0.23698688,58759.0,58758.0,0.4761934]
[1617690599043,0.44132572,58761.0,58758.0,0.4761934]
[1617690599643,0.44132572,58761.0,58759.0,0.0603217]
[1617690600044,0.44132572,58761.0,58760.0,0.27]
[1617690600444,0.24128614,58764.0,58760.0,0.27]
[1617690600445,0.4414286,58762.0,58760.0,0.33032222]
[1617690600849,0.4414286,58762.0,58760.0,0.06032222]
[1617690601049,0.24128614,58764.0,58761.0,0.06032142]
[1617690601246,0.24128614,58764.0,58761.0,0.33032142]
[1617690601447,0.44141914,58762.0,58760.0,0.06032093]
[1617690601846,0.44141914,58762.0,58757.0,0.55486894]
[1617690601847,0.44141914,58762.0,58758.0,0.76962619]
[1617690602052,0.44141914,58762.0,58761.0,0.27]
[1617690602449,0.44141914,58762.0,58759.0,0.33032068]
[1617690602654,0.44141914,58762.0,58761.0,0.27]
[1617690602848,0.44141914,58762.0,58761.0,0.33032052]
[1617690603049,0.44141914,58762.0,58761.0,0.06032052]
[1617690603249,0.80259587,58762.0,58761.0,0.68977344]
[1617690603650,0.80259587,58762.0,58761.0,0.62945292]
[1617690604051,1.04387513,58762.0,58761.0,0.68977346]
[1617690604452,0.36117673,58762.0,58761.0,0.68977346]
[1617690607554,0.36089995,58763.0,58761.0,1.12812799]
[1617690607957,0.60217944,58764.0,58762.0,0.8572619]
[1617690608355,0.10725655,58765.0,58763.0,1.06680858]
[1617690608356,0.46815237,58765.0,58763.0,1.06680858]
[1617690608556,0.46815237,58765.0,58763.0,1.20253858]
[1617690608956,0.10725655,58765.0,58764.0,0.52581358]
[1617690609355,0.10725655,58765.0,58764.0,0.79581358]
[1617690609655,0.10725655,58765.0,58764.0,0.84631358]
[1617690609856,0.10725655,58765.0,58764.0,0.79581358]
[1617690610756,0.10725655,58765.0,58764.0,0.84691358]
[1617690611862,0.10725655,58765.0,58764.0,0.79581358]
[1617690613463,0.10725655,58765.0,58764.0,0.84651358]
[1617690613963,0.10725655,58765.0,58764.0,0.79581358]
[1617690614362,0.10725655,58765.0,58764.0,0.68855703]
[1617690614563,4.55293655,58765.0,58764.0,0.68855703]
[1617690615163,4.91351084,58765.0,58764.0,0.68855703]
[1617690615608,0.46783084,58765.0,58764.0,0.68855703]
[1617690616462,0.10725655,58765.0,58764.0,0.68855703]
[1617690616964,0.10725655,58765.0,58764.0,1.23330626]
[1617690618063,0.10725655,58765.0,58764.0,1.53146167]
[1617690619266,0.30044516,58772.0,58764.0,1.53146167]
[1617690619664,0.30041929,58774.0,58771.0,0.65539595]
[1617690619876,0.30041929,58774.0,58771.0,0.81146595]
[1617690620067,0.44056825,58781.0,58773.0,0.2972728]
[1617690620068,0.29988978,58778.0,58773.0,0.2972728]
[1617690620466,1.0,58788.0,58773.0,0.2972728]
[1617690620467,0.29988722,58779.0,58777.0,0.29718941]
[1617690620867,0.29988482,58780.0,58778.0,0.5671458]
[1617690621167,0.29988482,58780.0,58778.0,0.67440235]
[1617690621367,0.29988482,58780.0,58778.0,0.40440235]
[1617690621667,0.29988397,58781.0,58779.0,0.56709403]
[1617690621869,0.29988397,58781.0,58779.0,0.27]
[1617690622870,0.29988336,58782.0,58779.0,0.56706731]
[1617690623269,0.29988336,58782.0,58780.0,0.29704141]
[1617690623769,0.29988336,58782.0,58781.0,0.27]
[1617690625283,0.29986913,58785.0,58781.0,0.56691155]
[1617690625672,0.29986913,58785.0,58783.0,0.29685983]
[1617690625872,0.29986913,58785.0,58783.0,0.39637983]
[1617690626274,0.29986913,58785.0,58784.0,0.27]
[1617690627075,0.29986913,58785.0,58784.0,0.37725655]
[1617690631880,0.10725655,58786.0,58784.0,0.37725655]
[1617690632081,0.29954282,58787.0,58784.0,0.37725655]
[1617690632880,0.35943142,58790.0,58784.0,0.37725655]
[1617690632881,0.29954076,58788.0,58784.0,0.37725655]
[1617690633681,0.29953128,58790.0,58784.0,0.37725655]
[1617690634281,0.29952807,58791.0,58784.0,0.67359485]
[1617690634884,0.46667027,58794.0,58785.0,0.29626235]
[1617690634885,0.29951803,58792.0,58785.0,0.29626235]
[1617690635181,0.29951803,58792.0,58791.0,0.10725655]
[1617690635383,0.29951303,58793.0,58791.0,0.10725655]
[1617690635682,0.29951303,58793.0,58791.0,0.37725655]
[1617690637491,0.40677125,58794.0,58791.0,0.37725655]
[1617690638292,0.10725655,58794.0,58791.0,0.37725655]
[1617690640590,0.29950096,58796.0,58792.0,0.0504]
[1617690640990,0.29950096,58796.0,58793.0,0.27]
[1617690641389,0.29950096,58796.0,58792.0,0.27]
[1617690641591,0.29945966,58798.0,58792.0,0.27]
[1617690641791,0.29945966,58798.0,58794.0,0.27]
[1617690641991,0.29945966,58798.0,58792.0,0.27]
[1617690642194,0.29971728,58797.0,58794.0,0.29575059]
[1617690642495,0.24112133,58806.0,58795.0,0.12683]
[1617690642496,0.29908585,58803.0,58795.0,0.12683]
[1617690643194,0.29908585,58803.0,58802.0,0.10725655]
[1617690643393,0.60000442,58806.0,58802.0,0.10725655]
[1617690643394,0.35888667,58804.0,58802.0,0.10725655]
[1617690643593,0.35888667,58804.0,58802.0,0.37725655]
[1617690643793,0.29908489,58803.0,58802.0,0.37725655]
[1617690644393,0.35888667,58804.0,58802.0,0.37725655]
[1617690644394,0.29907912,58804.0,58802.0,0.37725655]
[1617690644593,0.46613156,58807.0,58802.0,0.37725655]
[1617690644594,0.29908213,58803.0,58802.0,0.37725655]
[1617690645694,0.10725655,58807.0,58802.0,0.37725655]
[1617690645695,0.29907744,58804.0,58802.0,0.37725655]
[1617690646594,0.299065,58805.0,58802.0,0.37725655]
[1617690647595,0.2990627,58806.0,58802.0,0.37725655]
[1617690650199,0.40631837,58807.0,58802.0,0.37725655]
[1617690650602,0.10725655,58807.0,58802.0,0.37725655]
[1617690657311,0.29879252,58813.0,58802.0,0.37725655]
[1617690657511,0.29879252,58813.0,58803.0,1.0]
[1617690657711,0.29878911,58812.0,58803.0,1.0]
[1617690657912,0.29878911,58812.0,58804.0,0.27]
[1617690658113,0.29878157,58814.0,58804.0,0.27]
[1617690658616,0.29878195,58814.0,58804.0,0.27]
[1617690658911,0.29878195,58814.0,58803.0,1.27]
[1617690659111,0.29878195,58814.0,58805.0,0.27]
[1617690659311,0.29878195,58814.0,58813.0,0.10725655]
[1617690659514,0.29878195,58814.0,58813.0,0.24611655]
[1617690659915,0.29878195,58814.0,58813.0,0.51611655]
[1617690661115,0.29878238,58815.0,58813.0,0.51611655]
[1617690661526,0.29878386,58814.0,58813.0,0.51611655]
[1617690662322,0.29856725,58816.0,58813.0,0.51611655]
[1617690663118,0.29856165,58817.0,58813.0,0.51611655]
[1617690663719,3.1504,58814.0,58813.0,0.37725655]
[1617690664242,4.24785,58814.0,58813.0,0.27]
[1617690664620,4.24785,58814.0,58803.0,0.4709]
[1617690664621,4.5467762,58814.0,58804.0,0.27]
[1617690665021,4.90547455,58814.0,58813.0,0.27]
[1617690665324,5.0127311,58814.0,58804.0,0.37725655]
[1617690665522,5.451112,58814.0,58804.0,0.37725655]
[1617690665721,5.451112,58814.0,58813.0,0.27]
[1617690665921,5.451112,58814.0,58804.0,0.10725655]
[1617690665922,0.29893276,58807.0,58805.0,0.27]
[1617690666223,0.29893276,58807.0,58804.0,0.10725655]
[1617690666522,0.24108851,58813.0,58804.0,0.10725655]
[1617690666523,0.29893328,58806.0,58804.0,0.10725655]
[1617690666722,0.29893328,58806.0,58805.0,0.27]
[1617690667324,0.10725655,58806.0,58805.0,0.27]
[1617690667823,0.40619204,58806.0,58805.0,0.27]
[1617690668824,0.10725655,58806.0,58805.0,0.27]
[1617690669225,0.76605886,58806.0,58805.0,0.27]
[1617690669645,0.10725655,58806.0,58805.0,0.27]
[1617690670042,0.2,58823.0,58805.0,0.27]
[1617690670043,1.0,58818.0,58805.0,0.27]
[1617690670225,0.29943269,58806.0,58805.0,0.27]
[1617690671428,0.29942587,58807.0,58805.0,0.27]
[1617690673364,0.2994261,58806.0,58805.0,0.27]
[1617690674148,0.29951052,58808.0,58805.0,0.27]
[1617690674731,0.10725655,58814.0,58805.0,0.27]
[1617690674732,0.29950218,58810.0,58805.0,0.27]
[1617690675633,0.2994912,58811.0,58805.0,0.56444865]
[1617690677338,0.2994912,58811.0,58810.0,0.10725655]
[1617690677838,0.2994912,58811.0,58810.0,0.37725655]
[1617690678640,0.29947228,58813.0,58810.0,0.37725655]
[1617690679040,0.10725655,58814.0,58810.0,0.37725655]
[1617690679846,0.29946675,58815.0,58810.0,0.37725655]
[1617690680544,0.29946675,58815.0,58814.0,0.29196422]
[1617690680844,0.29990517,58816.0,58814.0,0.56196422]
[1617690681145,0.29989912,58818.0,58814.0,0.56196422]
[1617690681344,0.29989912,58818.0,58817.0,0.10725655]
[1617690681545,0.29989912,58818.0,58817.0,0.26291655]
[1617690681752,0.29989912,58818.0,58817.0,0.53291655]
[1617690682145,0.29989915,58819.0,58817.0,0.8739278]
[1617690682345,0.29989915,58819.0,58817.0,0.8236278]
[1617690682645,0.29989915,58819.0,58817.0,1.8236278]
[1617690682963,0.359859,58822.0,58817.0,1.8236278]
[1617690682964,0.29987886,58821.0,58818.0,0.29014068]
[1617690683448,0.29987886,58823.0,58820.0,0.28992787]
[1617690684148,0.29987886,58823.0,58821.0,0.27]
[1617690684350,1.085,58824.0,58821.0,0.56001489]
[1617690684351,1.38487035,58824.0,58821.0,0.56001489]
[1617690684749,1.085,58824.0,58818.0,0.55941036]
[1617690685049,1.085,58824.0,58822.0,0.27]
[1617690685348,1.085,58824.0,58823.0,0.10725655]
[1617690685930,1.085,58824.0,58823.0,0.37725655]
[1617690686493,1.085,58824.0,58823.0,1.01507761]
[1617690686650,1.085,58824.0,58823.0,2.01507761]
[1617690686980,1.085,58824.0,58823.0,2.44015222]
[1617690688251,1.085,58824.0,58823.0,1.44015222]
[1617690688451,1.085,58824.0,58823.0,2.44015222]
[1617690688753,1.085,58824.0,58823.0,1.01507761]
[1617690689256,1.085,58824.0,58823.0,2.01507761]
[1617690691457,1.085,58824.0,58823.0,1.01507761]
[1617690691859,1.085,58824.0,58823.0,1.4405579]
[1617690692261,1.085,58824.0,58823.0,1.01507761]
[1617690697464,1.085,58824.0,58823.0,1.06557761]
[1617690697864,1.0589,58824.0,58823.0,1.06557761]
[1617690698563,1.0589,58824.0,58823.0,0.66717521]
[1617690699666,1.0589,58824.0,58823.0,1.01526638]
[1617690700164,1.0589,58824.0,58823.0,0.66717521]
[1617690703168,0.9989,58824.0,58823.0,1.01477622]
[1617690703570,0.805,58824.0,58823.0,1.01477622]
[1617690703769,0.9989,58824.0,58823.0,1.01477622]
[1617690704069,0.9639,58824.0,58823.0,1.01477622]
[1617690704269,0.9989,58824.0,58823.0,1.01477622]
[1617690704470,0.9289,58824.0,58823.0,1.01477622]
[1617690704871,0.8589,58824.0,58823.0,1.01477622]
[1617690706272,0.4389,58824.0,58823.0,1.01477622]
[1617690706873,0.9989,58824.0,58823.0,1.01477622]
[1617690709877,0.9481,58824.0,58823.0,1.01477622]
[1617690710076,0.9224,58824.0,58823.0,1.01477622]
[1617690710276,0.8836,58824.0,58823.0,1.01477622]
[1617690712378,0.8836,58824.0,58823.0,2.01477622]
[1617690712577,0.8836,58824.0,58823.0,2.06637622]
[1617690712977,0.8836,58824.0,58823.0,1.06637622]
[1617690713179,0.8836,58824.0,58823.0,2.06637622]
[1617690713476,0.8583,58824.0,58823.0,2.06637622]
[1617690713677,0.8583,58824.0,58823.0,2.01477622]
[1617690713877,0.8583,58824.0,58823.0,1.01477622]
[1617690715278,0.7837,58824.0,58823.0,1.01477622]
[1617690715481,0.7837,58824.0,58823.0,2.43871847]
[1617690716783,0.78269622,58824.0,58823.0,2.43871847]
[1617690717084,0.75729622,58824.0,58823.0,1.37725655]
[1617690717484,0.75729622,58824.0,58823.0,2.91894154]
[1617690718684,0.75729622,58824.0,58823.0,2.43716498]
[1617690719986,0.73329622,58824.0,58823.0,2.43716498]
[1617690720787,0.70819622,58824.0,58823.0,2.43716498]
[1617690722589,0.70819622,58824.0,58823.0,2.91898611]
[1617690722991,0.70819622,58824.0,58823.0,2.43716498]
[1617690723492,0.70819622,58824.0,58823.0,2.52750614]
[1617690723790,0.70819622,58824.0,58823.0,2.43716498]
[1617690723989,0.67669622,58824.0,58823.0,2.43716498]
[1617690724690,0.67669622,58824.0,58823.0,1.43716498]
[1617690724890,0.67669622,58824.0,58823.0,2.43716498]
[1617690725494,0.67669622,58824.0,58823.0,1.43716498]
[1617690725791,0.67669622,58824.0,58823.0,2.43716498]
[1617690726996,0.67569242,58824.0,58823.0,2.43716498]
[1617690727795,0.67569242,58824.0,58823.0,2.91843703]
[1617690729000,0.67569242,58824.0,58823.0,1.91843703]
[1617690729428,0.65459242,58824.0,58823.0,2.91843703]
[1617690731299,0.65459242,58824.0,58823.0,1.91843703]
[1617690731600,0.65459242,58824.0,58823.0,2.91843703]
[1617690732000,0.64609242,58824.0,58823.0,2.91843703]
[1617690732501,0.64609242,58824.0,58823.0,1.91843703]
[1617690732901,0.64609242,58824.0,58823.0,2.91843703]
[1617690733403,0.53499242,58824.0,58823.0,2.91843703]
[1617690733603,0.53499242,58824.0,58823.0,3.45931692]
[1617690734304,0.38459242,58824.0,58823.0,3.45931692]
[1617690734505,0.35689242,58824.0,58823.0,3.45931692]
[1617690735507,0.33179242,58824.0,58823.0,3.45931692]
[1617690737108,0.33078867,58824.0,58823.0,3.45931692]
[1617690738909,0.32728867,58824.0,58823.0,3.45931692]
[1617690739408,0.32418867,58824.0,58823.0,3.45931692]
[1617690740509,0.28338867,58824.0,58823.0,3.45931692]
[1617690740709,0.27208867,58824.0,58823.0,3.45931692]
[1617690743012,0.25528867,58824.0,58823.0,3.45931692]
[1617690743312,0.23818867,58824.0,58823.0,3.45931692]
[1617690744814,0.20418867,58824.0,58823.0,3.45931692]
[1617690746114,0.20068867,58824.0,58823.0,3.45931692]
[1617690747116,0.17638867,58824.0,58823.0,3.45931692]
[1617690747816,0.12508867,58824.0,58823.0,3.45931692]
[1617690748016,0.12308867,58824.0,58823.0,3.45931692]
[1617690748316,0.12208493,58824.0,58823.0,3.45931692]
[1617690748516,0.07198493,58824.0,58823.0,3.45931692]
[1617690748818,0.05018493,58824.0,58823.0,3.45931692]
[1617690750221,0.04198493,58824.0,58823.0,3.45931692]
[1617690752026,0.03348493,58824.0,58823.0,3.45931692]
[1617690753124,8.493e-05,58824.0,58823.0,3.45931692]
[1617690754927,8.493e-05,58824.0,58823.0,2.45931692]
[1617690755126,8.493e-05,58824.0,58823.0,3.45931692]
[1617690758531,0.36027188,58850.0,58830.0,0.00011507]
[1617690758959,3.49342,58840.0,58831.0,0.27]
[1617690759442,3.49342,58840.0,58835.0,0.48446221]
[1617690759733,3.49342,58840.0,58839.0,0.34912355]
[1617690759932,0.11492,58840.0,58839.0,1.17402295]
[1617690760132,0.36043032,58845.0,58839.0,1.44402295]
[1617690760333,0.36043097,58848.0,58839.0,1.44402295]
[1617690760734,0.4405045,58853.0,58839.0,1.44402295]
[1617690760735,0.36042637,58849.0,58844.0,1.0662019]
[1617690761133,0.36042637,58849.0,58848.0,0.63979952]
[1617690761535,0.36042637,58849.0,58848.0,0.90979952]
[1617690761835,0.36042637,58849.0,58848.0,0.56081796]
[1617690762035,0.36042637,58849.0,58848.0,1.07724525]
[1617690773757,0.36042637,58849.0,58848.0,1.12834525]
[1617690774158,0.36042637,58849.0,58848.0,1.55608068]
[1617690774357,0.36042637,58849.0,58848.0,0.48857864]
[1617690774557,0.36042637,58849.0,58848.0,1.13020431]
[1617690775859,0.36042637,58849.0,58848.0,1.55808489]
[1617690780864,0.36101442,58850.0,58848.0,1.55808489]
[1617690781667,0.44122076,58853.0,58849.0,1.13066343]
[1617690781965,0.44122076,58853.0,58849.0,1.22098814]
[1617690782165,0.44122076,58853.0,58850.0,0.27]
[1617690782367,0.50133317,58858.0,58852.0,0.6421531]
[1617690782767,0.50133317,58858.0,58857.0,0.29187742]
[1617690783165,1.30351238,58858.0,58857.0,0.29187742]
[1617690783664,1.30351238,58858.0,58857.0,0.56187742]
[1617690784168,1.41076893,58858.0,58857.0,0.56187742]
[1617690784366,2.41076893,58858.0,58857.0,0.56187742]
[1617690784766,1.01114707,58858.0,58857.0,0.56187742]
[1617690784967,0.90389052,58858.0,58857.0,0.56187742]
[1617690786070,0.80217921,58858.0,58857.0,0.66913397]
[1617690788172,0.90943576,58858.0,58857.0,0.66913397]
[1617690788769,1.01115366,58858.0,58857.0,0.66913397]
[1617690789270,1.51248933,58858.0,58857.0,0.66913397]
[1617690789568,0.10725655,58858.0,58857.0,0.37725655]
[1617690790069,1.41077234,58858.0,58857.0,0.37725655]
[1617690790371,2.41077234,58858.0,58857.0,0.37725655]
[1617690792270,2.91077234,58858.0,58857.0,0.37725655]
[1617690792570,4.03668234,58858.0,58857.0,0.37725655]
[1617690792972,4.03668234,58858.0,58857.0,0.27]
[1617690793271,7.28352529,58858.0,58857.0,0.27]
[1617690793470,7.28352529,58858.0,58856.0,0.27]
[1617690793670,7.28352529,58858.0,58853.0,0.29172294]
[1617690793671,7.28352529,58858.0,58857.0,0.27]
[1617690793871,7.28352529,58858.0,58853.0,0.29172294]
[1617690794071,0.2,58856.0,58854.0,0.27]
[1617690794271,2.18927601,58857.0,58852.0,0.29191801]
[1617690794272,1.7,58855.0,58852.0,0.29191801]
[1617690794671,3.13508466,58855.0,58853.0,0.27]
[1617690795008,1.0,58853.0,58852.0,0.29191801]
[1617690795272,1.7,58853.0,58849.0,0.4727]
[1617690795471,1.7,58853.0,58852.0,0.27]
[1617690795674,8.11906536,58853.0,58850.0,0.27]
[1617690796073,8.42761667,58853.0,58850.0,0.27]
[1617690796273,0.10725655,58851.0,58850.0,0.27]
[1617690796475,3.31150764,58851.0,58850.0,0.27]
[1617690796876,2.7499326,58851.0,58850.0,0.27]
[1617690797076,3.7499326,58851.0,58850.0,0.27]
[1617690797276,3.30867358,58851.0,58850.0,0.27]
[1617690797677,4.17445836,58851.0,58850.0,0.27]
[1617690805390,3.61292843,58851.0,58850.0,0.27]
[1617690805890,4.17296088,58851.0,58850.0,0.27]
[1617690811798,9.17296088,58851.0,58850.0,0.27]
[1617690812197,9.64520275,58851.0,58850.0,0.27]
[1617690812698,9.64520275,58851.0,58850.0,0.26899605]
[1617690812897,12.50850275,58851.0,58850.0,0.26899605]
[1617690822717,12.50850275,58851.0,58827.0,0.4827]
[1617690823428,4.54410377,58828.0,58827.0,0.4827]
[1617690823614,6.04410377,58828.0,58827.0,0.4827]
[1617690823844,6.04410377,58828.0,58827.0,0.7527]
[1617690824046,6.46365509,58828.0,58827.0,0.7527]
[1617690824460,6.57091164,58828.0,58827.0,0.7527]
[1617690824971,7.57091164,58828.0,58827.0,0.7527]
[1617690825177,6.57091164,58828.0,58827.0,0.27]
[1617690825358,7.57091164,58828.0,58827.0,0.27]
[1617690825616,8.07009357,58828.0,58812.0,0.27]
[1617690825816,8.07009357,58828.0,58827.0,0.27]
[1617690826217,8.07009357,58828.0,58810.0,0.27]
[1617690826584,0.10725655,58811.0,58809.0,0.27]
[1617690826719,0.10725655,58811.0,58808.0,0.39895715]
[1617690827018,0.10725655,58811.0,58809.0,0.27]
[1617690827420,1.0,58810.0,58809.0,0.27]
[1617690829122,0.10725655,58811.0,58809.0,0.27]
[1617690829325,0.2,58819.0,58809.0,0.27]
[1617690829770,0.2,58819.0,58813.0,0.29063773]
[1617690829924,1.0,58825.0,58813.0,0.29063773]
[1617690830156,1.0,58825.0,58814.0,0.27]
[1617690830352,1.0,58825.0,58824.0,0.10725655]
[1617690830824,1.0,58825.0,58824.0,0.37725655]
[1617690831828,1.0,58825.0,58824.0,0.42815655]
[1617690835831,1.0,58825.0,58824.0,0.37725655]
[1617690838233,1.10725655,58826.0,58824.0,0.37725655]
[1617690840840,3.0071,58825.0,58824.0,0.37725655]
[1617690842941,4.0071,58825.0,58824.0,0.37725655]
[1617690843241,4.0071,58825.0,58824.0,0.27]
[1617690843641,4.0071,58825.0,58818.0,0.27]
[1617690843841,4.36631965,58825.0,58818.0,0.27]
[1617690844041,4.36631965,58825.0,58824.0,0.27]
[1617690844242,3.0071,58825.0,58815.0,0.27]
[1617690844441,1.0,58824.0,58815.0,0.27]
[1617690844642,1.0,58824.0,58815.0,0.29087473]
[1617690844842,1.0,58824.0,58816.0,0.27]
[1617690845050,1.0,58824.0,58816.0,0.56086445]
[1617690845544,1.0,58824.0,58817.0,0.29082332]
[1617690845958,1.0,58824.0,58818.0,0.27]
[1617690846345,1.0,58824.0,58821.0,0.10725655]
[1617690846745,1.0,58824.0,58822.0,0.27]
[1617690847946,4.0071,58825.0,58822.0,0.27]
[1617690848462,0.10725655,58823.0,58822.0,0.27]
[1617690852861,1.10725655,58823.0,58822.0,0.27]
[1617690853454,1.10725655,58823.0,58819.0,0.29091861]
[1617690853455,0.10725655,58823.0,58820.0,0.26]
[1617690853655,1.10725655,58823.0,58820.0,0.26]
[1617690853855,1.10725655,58823.0,58822.0,0.29176205]
[1617690853856,1.46757261,58823.0,58822.0,0.29176205]
[1617690854156,1.10725655,58823.0,58822.0,0.29176205]
[1617690854356,1.10725655,58823.0,58822.0,0.56176205]
[1617690854557,1.46757268,58823.0,58822.0,0.56176205]
[1617690856060,1.46757268,58823.0,58822.0,0.27]
[1617690856560,1.46757268,58823.0,58821.0,0.29188752]
[1617690856761,1.46757268,58823.0,58822.0,0.27]
[1617690857764,1.46757268,58823.0,58822.0,0.56181099]
[1617690858164,1.46757268,58823.0,58822.0,0.29181099]
[1617690858664,1.46757268,58823.0,58822.0,0.56181099]
[1617690859165,1.46757268,58823.0,58822.0,0.62204923]
[1617690861768,1.46757268,58823.0,58822.0,0.56181099]
[1617690862669,1.46757268,58823.0,58822.0,0.27]
[1617690863070,1.90809181,58823.0,58821.0,0.29189833]
[1617690863375,1.90809181,58823.0,58822.0,0.27]
[1617690863578,1.54777568,58823.0,58822.0,0.27]
[1617690863769,0.54777568,58823.0,58822.0,0.27]
[1617690863970,0.90822039,58823.0,58821.0,0.29134157]
[1617690864371,0.90822039,58823.0,58821.0,0.56134157]
[1617690864574,0.36044725,58822.0,58820.0,0.29146178]
[1617690864980,0.95254233,58822.0,58820.0,0.29146178]
[1617690865275,1.36059649,58821.0,58818.0,0.34985613]
[1617690865475,0.36059649,58821.0,58818.0,0.34985613]
[1617690865678,1.0,58822.0,58820.0,0.91120988]
[1617690865876,1.0,58822.0,58820.0,1.05216988]
[1617690866078,1.0,58822.0,58820.0,0.78216988]
[1617690866378,0.10725655,58823.0,58821.0,0.97131987]
[1617690866577,2.5612,58822.0,58821.0,0.97131987]
[1617690866777,2.5612,58822.0,58821.0,0.27]
[1617690867178,2.92177735,58822.0,58821.0,0.91119774]
[1617690869081,2.5612,58822.0,58821.0,0.91119774]
[1617690869282,3.5612,58822.0,58821.0,0.91119774]
[1617690869482,3.92177795,58822.0,58821.0,0.91119774]
[1617690870084,2.92177795,58822.0,58821.0,0.91119774]
[1617690873590,2.5612,58822.0,58821.0,0.91119774]
[1617690876290,2.5612,58822.0,58821.0,1.33956043]
[1617690880293,2.5612,58822.0,58821.0,1.34039194]
[1617690881694,2.92195453,58822.0,58821.0,1.34039194]
[1617690882296,2.5612,58822.0,58821.0,1.34039194]
[1617690883199,2.5612,58822.0,58821.0,0.96302925]
[1617690883703,2.5612,58822.0,58821.0,1.39172237]
[1617690884597,0.10725655,58823.0,58821.0,1.39172237]
[1617690884796,0.36071841,58824.0,58821.0,1.54803237]
[1617690884996,0.32661841,58824.0,58821.0,1.54803237]
[1617690885197,0.36070746,58826.0,58822.0,1.13137808]
[1617690885598,0.56104485,58845.0,58822.0,1.13137808]
[1617690885599,0.44081967,58833.0,58825.0,0.72009667]
[1617690886097,1.1281,58851.0,58832.0,0.29183655]
[1617690886098,0.44081511,58835.0,58832.0,0.29183655]
[1617690886550,0.5610101,58850.0,58834.0,0.29162359]
[1617690886551,0.44078592,58839.0,58834.0,0.29162359]
[1617690886706,0.44078592,58839.0,58838.0,0.10725655]
[1617690887000,0.14257973,58850.0,58838.0,0.39870302]
[1617690887001,0.44075803,58842.0,58838.0,0.39870302]
[1617690887216,0.44075803,58842.0,58838.0,0.40870302]
[1617690887458,0.44075803,58842.0,58838.0,1.40870302]
[1617690887643,1.0,58867.0,58838.0,1.40870302]
[1617690887644,0.44136209,58847.0,58841.0,1.71920731]
[1617690888034,0.44134407,58851.0,58842.0,0.27]
[1617690888407,0.44134407,58851.0,58844.0,0.48541889]
[1617690888616,0.50150272,58858.0,58844.0,0.48541889]
[1617690888617,0.44133442,58852.0,58851.0,0.4785]
[1617690888813,0.5014982,58859.0,58851.0,0.58575655]
[1617690889302,0.5014982,58859.0,58853.0,1.0]
[1617690889504,0.5014982,58859.0,58858.0,0.29118974]
[1617690889902,0.50149645,58860.0,58858.0,0.29118974]
[1617690890102,0.50149645,58860.0,58858.0,0.56118974]
[1617690890303,0.50149483,58861.0,58859.0,0.29115879]
[1617690890704,0.50149483,58861.0,58860.0,0.66839411]
[1617690891104,0.50147883,58863.0,58860.0,0.72860907]
[1617690891605,0.50147883,58863.0,58862.0,0.43161521]
[1617690892105,0.50147883,58863.0,58862.0,0.70161521]
[1617690893506,0.09622298,58870.0,58862.0,0.41048]
[1617690893809,0.10725655,58871.0,58862.0,0.41048]
[1617690894606,2.642,58865.0,58862.0,0.41048]
[1617690895508,2.642,58865.0,58862.0,0.46168]
[1617690895709,2.642,58865.0,58862.0,0.41048]
[1617690896010,0.10725655,58871.0,58862.0,0.41048]
[1617690896812,0.10725655,58871.0,58870.0,0.01801559]
[1617690897212,0.10725655,58871.0,58870.0,0.28801559]
[1617690900616,0.10725655,58871.0,58870.0,0.33861559]
[1617690901214,0.10725655,58871.0,58870.0,0.28801559]
[1617690907620,2.63605655,58871.0,58870.0,0.28801559]
[1617690912846,3.63605655,58871.0,58870.0,0.28801559]
[1617690913828,2.63605655,58871.0,58870.0,0.28801559]
[1617690914028,2.63605655,58871.0,58870.0,0.38865559]
[1617690914228,0.10725655,58871.0,58870.0,0.38865559]
[1617690915631,0.10725655,58871.0,58870.0,0.43995559]
[1617690916931,0.10725655,58871.0,58870.0,0.38865559]
[1617690921237,3.5612,58884.0,58870.0,0.38865559]
[1617690922539,3.5612,58884.0,58871.0,0.0513]
[1617690922939,0.035,58884.0,58872.0,0.27]
[1617690923138,0.14225655,58884.0,58883.0,0.23204655]
[1617690923538,0.14225655,58884.0,58883.0,0.50204655]
[1617690926545,0.035,58884.0,58883.0,0.50204655]
[1617690953177,0.035,58884.0,58883.0,0.79287479]
[1617690955578,0.43979694,58889.0,58883.0,0.79287479]
[1617690955878,0.035,58884.0,58883.0,0.79287479]
[1617690956880,0.035,58884.0,58883.0,1.1415324]
[1617690964292,0.035,58884.0,58883.0,1.56781965]
[1617690964792,0.035,58884.0,58883.0,1.1415324]
[1617690965697,0.035,58884.0,58883.0,1.5677467]
[1617690966394,0.035,58884.0,58883.0,1.1415324]
[1617690967694,0.035,58884.0,58883.0,1.56780366]
[1617690968395,0.035,58884.0,58883.0,2.56780366]
[1617690969611,0.035,58884.0,58883.0,3.05163876]
[1617690974903,0.0233,58884.0,58883.0,3.05163876]